{"text_format":"1","workbook":"xlsx","n_sheets":3,"sheets":["Relació de despeses","Relació d'ingressos ","Despeses i ingressos"],"not_rendered":{"charts":0,"images":3,"macros":1,"external_links":0,"defined_names":8,"comments":3,"pivot_tables":0},"unopened":[],"bounds":{"document_bytes":16777216,"sheet_cells":100000,"rows_first":2000,"rows_last":500,"rows_between":2000,"halvings":0,"cell_chars":16384,"cell_head_chars":4096},"cells_cut":0,"cells_raw":0,"read":"whole","date_system":"1900"}

{"sheet":"Relació de despeses","index":0,"n_rows":89,"n_cols":10,"rows_kept":89,"cut":false,"hidden":false,"merged":[[88,0,88,10],[48,0,48,2],[48,3,48,6],[48,9,48,10],[76,0,76,10],[77,0,77,10],[78,0,78,10],[79,0,79,10],[80,0,80,10],[81,0,81,10],[82,0,82,10],[83,0,83,10],[84,0,84,10],[72,0,72,10],[56,0,56,10],[57,0,57,10],[32,9,32,10],[33,9,33,10],[34,9,34,10],[39,9,39,10],[87,0,87,10],[58,9,58,10],[61,9,61,10],[62,0,62,2],[62,3,62,6],[62,9,62,10],[85,0,85,10],[86,0,86,10],[67,0,67,10],[69,0,69,10],[65,4,65,10],[71,0,71,10],[70,0,70,10],[50,0,50,10],[47,0,47,6],[47,9,47,10],[35,0,35,6],[18,9,18,10],[19,9,19,10],[20,9,20,10],[21,0,21,6],[28,9,28,10],[29,0,29,6],[29,9,29,10],[21,9,21,10],[24,0,24,10],[25,9,25,10],[23,0,23,10],[30,0,30,10],[31,9,31,10],[0,0,0,10],[4,0,4,1],[2,2,2,3],[3,2,3,3],[4,2,4,3],[2,0,2,1],[2,4,2,6],[3,4,3,6],[4,4,4,6],[2,7,2,8],[3,7,3,8],[4,7,4,8],[8,9,8,10],[7,9,7,10],[22,0,22,2],[22,3,22,6],[22,9,22,10],[16,0,16,10],[17,9,17,10],[7,3,7,4],[15,9,15,10],[15,0,15,6],[11,9,11,10],[12,9,12,10],[13,9,13,10],[10,0,10,10],[14,9,14,10],[9,0,9,10],[3,0,3,1],[7,1,8,1],[7,0,8,0],[6,0,6,4],[7,2,8,2],[35,9,35,10],[36,0,36,10],[37,9,37,10],[38,9,38,10],[63,9,63,10],[40,9,40,10],[41,0,41,6],[51,9,51,10],[43,9,43,10],[44,9,44,10],[45,9,45,10],[46,9,46,10],[41,9,41,10],[42,0,42,10],[63,0,63,5],[54,9,54,10],[55,0,55,2],[55,3,55,6],[55,9,55,10],[49,0,49,10]]}
["Relació classificada de totes les despeses realitzades per a l'execució de l'activitat  subvencionada"]
[]
["Persona física/jurídica beneficiària:         ",null,null,null,"Import del cost total del projecte:",null,null,null,null,"euros"]
["Codi de subvenció:",null,null,null,"Import de la subvenció atorgada:",null,null,null,null,"euros"]
["Nom del projecte subvencionat:",null,null,null,"Període d'execució del projecte subvencionat:",null,null,null,null,"a"]
[]
["Despeses del projecte/activitat/servei subvencionat (*)"]
["Núm. d'ordre (0)","Número de document: justificants despesa personal (1), factura o rebut/tiquet(2)","Concepte de la factura / \ndocument probatori equivalent","Emissor/a de la factura",null,"Data d'emissió","Import total de la factura","Import imputable (dedicat) al projecte (3)","Import imputable a la subvenció municipal (4)","Observacions"]
[null,null,null,"NIF","Nom","dd/mm/aaaa","euros","euros","euros"]
["ACTIVITAT A. Fase de redacció de Projecte d’Obres de nova construcció o rehabilitació integral o la fase de direcció de les obres per part d’Arquitecte i Arquitecte Tècnic (màxim 80% subvenció)"]
["A.D1 Honoraris d'arquitecte en la fase de projecte i/o direcció"]
[]
[]
[]
[]
["Subtotal A.D1",null,null,null,null,null,null,{"$f":"SUM(H12:H15)","v":0},{"$f":"SUM(I12:I15)","v":0}]
["A.D2 Honoraris d'arquitecte en la fase de direcció"]
[]
[]
[]
[]
["Subtotal A.D2",null,null,null,null,null,null,{"$f":"SUM(H18:H21)","v":0},{"$f":"SUM(I18:I21)","v":0}]
["TOTAL DESPESES ACTIVITAT A",null,null,"TOTAL DESPESES ACTIVITAT A",null,null,null,{"$f":"+H16+H22","v":0},{"$f":"+I16+I22","v":0},{"$f":"IF(I23<=$H$4*0.8,\"\",\"Error: Activitat A no pot superar el 80% de la subvenció\")","v":""}]
["ACTIVITAT B. Fase de redacció del Conveni per a la prestació de serveis i instal·lacions per als socis i els veïns si s'escau (màxim 10% subvenció) "]
["B.D1 Honoraris d'arquitecte per definició dels espais comuns per a les activitats col·laboratives sempre i quan no estiguin totalment definits en el Projecte Executiu"]
[]
[]
[]
[]
["Subtotal B.D1",null,null,null,null,null,null,{"$f":"SUM(H26:H29)","v":0},{"$f":"SUM(I26:I29)","v":0}]
["B.D2 Honoraris de tècnic agrícola o jardiner pel projecte d'hort i / o jardí comunitari. O honoraris de la gestora pel mateix concepte"]
[]
[]
[]
[]
["Subtotal B.D2",null,null,null,null,null,null,{"$f":"SUM(H32:H35)","v":0},{"$f":"SUM(I32:I35)","v":0}]
["B.D3 Honoraris d'economista per al compte d'explotació de construcció i/o implementació i el d'explotació. O honoraris de la gestora pel mateix concepte"]
[]
[]
[]
[]
["Subtotal B.D3",null,null,null,null,null,null,{"$f":"SUM(H38:H41)","v":0},{"$f":"SUM(I38:I41)","v":0}]
["B.D4 Honoraris d'enginyer d'organització o tècnic especialista en organització i explotació d'espais i instal·lacions comunes, serveis compartits i aplicacions informàtiques per a l'ús dels socis i veïns si s'escau. O honoraris de la gestora pel mateix concepte"]
[]
[]
[]
[]
["Subtotal B.D4",null,null,null,null,null,null,{"$f":"SUM(H44:H47)","v":0},{"$f":"SUM(I44:I47)","v":0}]
["TOTAL DESPESES ACTIVITAT B",null,null,"TOTAL DESPESES ACTIVITAT B",null,null,null,{"$f":"H30+H36+H42+H48","v":0},{"$f":"+I30+I36+I42+I48","v":0},{"$f":"IF(I49<=H4*0.1,\"\",\"Error: Activitat B no pot superar el 10% de la subvenció\")","v":""}]
["ACTIVITAT C. Tasques d'enfortiment, cohesió, dinamització, resolució de conflictes i participació de les persones sòcies tant en el plantejament del projecte de construcció, com en el projecte col·laboratiu i en la mateixa dinàmica de la cooperativa, (màxim 10% subvenció) "]
["C.D1 Honoraris de persones o entitats relacionades amb la dinamització, mediació i participació de grups, o de la pròpia gestora per aquests conceptes"]
[]
[]
[]
[]
["TOTAL DESPESES ACTIVITAT C",null,null,"TOTAL DESPESES ACTIVITAT C",null,null,null,{"$f":"SUM(H52:H55)","v":0},{"$f":"SUM(I52:I55)","v":0},{"$f":"IF(I56<=H4*0.1,\"\",\"Error: Activitat C no pot superar el 10% de la subvenció\")","v":""}]
["AUDITORIA. Per les subvencions atorgades per import igual o superior a 20.000 € és obligatori un informe d'auditoria per a la justificació."]
["D.D1 Despeses de l'informe d'auditoria (màxim 1.500€ subvenció)"]
[]
[]
[]
[]
["TOTAL DESPESES AUDITORIA",null,null,"TOTAL DESPESES AUDITORIA",null,null,null,{"$f":"SUM(H59:H62)","v":0},{"$f":"SUM(I59:I62)","v":0},{"$f":"IF(I63<=1500,\"\",\"Error: Despeses d'auditoria no poden superar els 1.500,00 €\")","v":""}]
["TOTAL DESPESES",null,null,null,null,null,"TOTAL",{"$f":"H23+H49+H56+H63","v":0},{"$f":"I23+I49+I56+I63","v":0}]
[]
[]
["Notes:"]
["(*) S'han de relacionar totes les despeses del projecte/activitat/servei subvencionat. En el cas que el nombre de files de cada concepte sigui insuficient podeu inserir línies dins del mateix concepte seleccionant una cel·la verda i fent clic sobre el botó d'inserir línia."]
["(0) El número d'ordre ha de ser correlatiu començant per D.1.1, D1.2, D.1.3, D2.4, etc."]
["(1) Respecte a les despeses de recursos humans, pot ser subvencionable el cost total salarial mensual, que correspon a la suma de la retribució bruta que apareix a la nòmina del treballador/a més la quota de l'empresa a la Seg. Social. Les despeses de personal es justifiquen amb la nòmina del treballador/a acompanyada dels corresponents RLC i RNT (anteriors TC1 i TC2) de la TGSS i el model 111 de l'IRPF."]
["(2) En el cas que el document justificatiu de la resta de despeses, no sigui una factura, sinó un altre document probatori equivalent, com un rebut o justificant (com per dietes o transport públic), indiqueu-lo en la columna \"observacions\""]
["(3) En el cas que un justificant inclogui conceptes que no tenen relació amb el projecte/activitat/servei per al qual s'ha atorgat la subvenció, aquí només s'ha d'indicar la part que realment s'ha dedicat al projecte."]
["(4) En aquesta columna s'ha d'indicar l'import total o parcial de la factura  que s'imputa a la subvenció rebuda de l'Ajuntament de Barcelona. El total imputat, en aquesta columna, ha de ser igual  a l'import de la subvenció rebuda."]
[]
["Clica la icona per generar un document PDF del llibre"]
[]
["Àmbit C SECTORS ESTRATÈGICS: Cooperativisme d’Habitatge en cessió d’ús"]
["1. L’import de la subvenció sempre serà màxim del 80% de les despeses esmentades atès que el 20% ha de ser sufragat per la cooperativa."]
["2. L'import màxim de subvenció per a aquesta modalitat C. SECTORS ESTRATÈGICS:  Cooperativisme d’habitatge en cessió  d’ús és 50.000€."]
["3. En el cas que la sol·licitud presentada sobrepassi l’import màxim, es considerarà com a import sol·licitat el màxim de l'establert a la convocatòria."]
["4. Les activitats objecte de la subvenció mitjançant les despeses esmentades en els punts anteriors han de ser meritades en els calendaris d’execució i justificació que preveu la present convocatòria de subvencions i les factures de despeses, el seu venciment i pagament també."]
["5. Per les subvencions atorgades per import igual o superior a 20.000 € és obligatori un informe d'auditoria per a la justificació. L'import d'aquest informe es considera despesa subvencionable i elegible, amb un límit màxim de 1.500 €."]
["6. Quan s'hagi de fer despeses de més de 12.000 €, sense IVA, en el cas de prestacions de serveis o lliurament de béns i per aquelles despeses de més de 30.000 €,  sense IVA, en el cas d'execució d'obres, s'hauran d'incorporar tres pressupostos sol·licitats i argumentar el motiu de l'adjudicació en el cas de no ser la proposta més avantatjosa econòmicament."]
["7. La retribució de les persones contractades en el marc del projecte subvencionat no pot ser inferior al Salari Mínim Interprofessional (SMI), ni a l'estipulada al corresponent conveni o marc normatiu de referència (punt 7 de les bases 2023: requisits dels projectes). "]
["8. Els projectes subvencionats han de fomentar activitats d'interès públic o social, les quals han de ser gratuïtes per a les persones participants o en cap cas el preu ha de suposar un obstacle per a la seva participació, buscant altres formes d'accés per a persones amb dificultats econòmiques. En el cas que hi hagi algun tipus de lucre, haurà de revertir en les pròpies activitats subvencionades."]
["9. L'Ajuntament de Barcelona i les seves entitats municipals en cap cas subvencionaran el mateix projecte, executat durant el mateix període, per cap altre procediment de concessió que no sigui el regulat per les bases reguladores."]
["10. El/la beneficiari/ària no podrà alterar en cap cas el destí de les subvencions concedides."]
["11. L'organització designada com a representant de l'agrupació serà plenament responsable del projecte davant l'Ajuntament respecte al compliment de les obligacions establertes en les bases reguladores, sense perjudici de la responsabilitat de les altres organitzacions sòcies de l'agrupació, tot sent-li d'aplicació els requisits previstos al punt 6.1 de les bases reguladores."]
["12. En cap cas podran formar part de l'agrupació les organitzacions que hagin rebut altres subvencions per a l'execució del mateix projecte d'altres administracions públiques."]

{"sheet":"Relació d'ingressos ","index":1,"n_rows":72,"n_cols":10,"rows_kept":72,"cut":false,"hidden":false,"merged":[[64,6,64,9],[59,6,59,9],[66,6,66,9],[60,6,60,9],[61,6,61,9],[62,6,62,9],[63,6,63,9],[66,0,66,3],[65,0,65,3],[65,6,65,9],[56,0,56,3],[50,0,50,3],[53,6,53,9],[52,6,52,9],[56,6,56,9],[50,6,50,9],[0,0,0,9],[9,0,9,9],[15,0,15,9],[7,6,8,9],[10,6,10,9],[7,0,8,0],[11,6,11,9],[13,6,13,9],[3,2,3,3],[2,2,2,3],[6,0,6,3],[4,2,4,3],[7,2,7,3],[7,1,8,1],[14,0,14,3],[44,0,44,3],[38,0,38,3],[32,0,32,3],[14,6,14,9],[20,6,20,9],[28,6,28,9],[38,6,38,9],[37,6,37,9],[32,6,32,9],[31,6,31,9],[26,0,26,3],[20,0,20,3],[36,6,36,9],[34,6,34,9],[24,6,24,9],[29,6,29,9],[16,6,16,9],[22,6,22,9],[26,6,26,9],[25,6,25,9],[41,6,41,9],[40,6,40,9],[30,6,30,9],[23,6,23,9],[19,6,19,9],[18,6,18,9],[17,6,17,9],[47,6,47,9],[46,6,46,9],[48,6,48,9],[44,6,44,9],[43,6,43,9],[42,6,42,9],[49,6,49,9],[58,6,58,9]]}
["Detall de tots els ingressos obtinguts i aportacions del propi beneficiari per a l'execució de l'activitat subvencionada"]
[]
[null,"Nom de la persona física/jurídica beneficiària:        ",{"$f":"IF('Relació de despeses'!C3:D3<>\"\",'Relació de despeses'!C3:D3,\"\")","v":""},null,"Import del cost total del projecte :",null,null,{"$f":"IF(+'Relació de despeses'!H3=\"\",\"\",+'Relació de despeses'!H3)","v":""},"euros"]
[null,"Codi de subvenció",{"$f":"IF('Relació de despeses'!C4:D4<>\"\",'Relació de despeses'!C4:D4,\"\")","v":""},null,"Import de la subvenció atorgada:",null,null,{"$f":"IF(+'Relació de despeses'!H4=\"\",\"\",+'Relació de despeses'!H4)","v":""},"euros"]
[null,"Nom del projecte subvencionat",{"$f":"IF('Relació de despeses'!C5:D5<>\"\",'Relació de despeses'!C5:D5,\"\")","v":""},null,"Període d'execució del projecte subvencionat:",null,null,{"$f":"IF(+'Relació de despeses'!H5=\"\",\"\",+'Relació de despeses'!H5)","v":""},"a",{"$f":"IF(+'Relació de despeses'!K5=\"\",\"\",+'Relació de despeses'!K5)","v":""}]
[]
["Ingressos del projecte/activitat/servei subvencionat"]
["núm. d'ordre (0)","Concepte de l'ingrés","Emissor/a de l'ingrés",null,"Data de cobrament\n(dd/mm/aaaa)","Import","Observacions"]
[null,null,"NIF","Nom","(1)","euros"]
["A. Subvenció municipal "]
[]
[]
[]
[]
[null,null,null,null,"Subtotal A",{"$f":"SUM(F11:F14)","v":0}]
["B. Subvencions d'altres administracions"]
[]
[]
[]
[]
[null,null,null,null,"Subtotal B",{"$f":"SUM(F17:F20)","v":0}]
["C. Subvencions d'ens privats"]
[]
[]
[]
[]
[null,null,null,null,"Subtotal C",{"$f":"SUM(F23:F26)","v":0}]
["D. Recursos propis de l'organització aplicats al projecte"]
[]
[]
[]
[]
[null,null,null,null,"Subtotal D",{"$f":"SUM(F29:F32)","v":0}]
["E. Taquillatge"]
[]
[]
[]
[]
[null,null,null,null,"Subtotal E",{"$f":"SUM(F35:F38)","v":0}]
["F. Quotes d'inscripció"]
[]
[]
[]
[]
[null,null,null,null,"Subtotal F",{"$f":"SUM(F41:F44)","v":0}]
["G. Venda de Productes"]
[]
[]
[]
[]
[null,null,null,null,"Subtotal G",{"$f":"SUM(F47:F50)","v":0}]
["H. Publicitat i/o Esponsorització"]
[]
[]
[]
[]
[null,null,null,null,"Subtotal H",{"$f":"SUM(F53:F56)","v":0}]
["I. Altres ingressos"]
[]
[]
[]
[]
[]
[]
[]
[null,null,null,null,"Subtotal I",{"$f":"SUM(F59:F65)","v":0}]
["Total INGRESSOS",null,null,null,"TOTAL",{"$f":"+F15+F21+F27+F33+F39+F45+F51+F57+F66","v":0}]
[]
[]
[null,"Nota:"]
[null,"(0) El número d'ordre ha de ser correlatiu començant pel número A1, A2, A3, B4, etc."]
[null,"(1) En cas que l'ingrés estigui pendent cobrament, indicar \"P. Cobrament\" "]

{"sheet":"Despeses i ingressos","index":2,"n_rows":70,"n_cols":11,"rows_kept":70,"cut":false,"hidden":false,"merged":[[10,0,11,1],[24,6,24,7],[25,6,25,7],[25,8,25,9],[17,2,18,2],[17,3,18,3],[10,8,11,8],[10,9,11,9],[10,2,11,2],[10,3,11,3],[10,6,11,7],[14,1,16,1],[14,2,16,2],[14,3,16,3],[14,4,16,4],[4,5,4,6],[5,0,5,1],[5,2,5,3],[5,5,5,6],[9,6,9,7],[6,0,6,1],[6,2,6,3],[9,0,9,1],[4,0,4,1],[4,2,4,3],[41,0,41,10],[35,0,35,10],[36,0,36,10],[37,0,37,10],[38,0,38,10],[39,0,39,10],[17,0,18,1],[33,4,33,10],[40,0,40,10],[28,5,28,8],[29,7,29,8],[24,0,24,1],[27,0,27,1]]}
[]
[]
["Estat de les despeses realitzades i dels ingressos obtinguts per a l'execució de l'activitat subvencionada (*)"]
[]
["Nom de la persona física/jurídica beneficiària:         ",null,{"$f":"IF('Relació de despeses'!C3:D3<>\"\",'Relació de despeses'!C3:D3,\"\")","v":""},null,null,"Import del cost total del projecte:",null,{"$f":"'Relació d''ingressos '!H3","v":""},"euros"]
["Codi de subvenció:",null,{"$f":"IF('Relació de despeses'!C4:D4<>\"\",'Relació de despeses'!C4:D4,\"\")","v":""},null,null,"Import de la subvenció atorgada:",null,{"$f":"'Relació d''ingressos '!H4","v":""},"euros"]
["Nom del projecte subvencionat:",null,{"$f":"IF('Relació de despeses'!C5:D5<>\"\",'Relació de despeses'!C5:D5,\"\")","v":""},null,null,"Període d'execució del projecte subvencionat:",null,null,{"$f":"'Relació d''ingressos '!H5","v":""},"a",{"$f":"'Relació d''ingressos '!J5","v":""}]
[]
["SUBVENCIONS PER A L'ENFORTIMENT DE L'ECONOMIA SOCIAL I SOLIDÀRIA I LA INTERCOOPERACIÓ 2023"]
["DESPESES PREVISTES",null,"import en euros",null,"import en euros",null,"INGRESSOS PREVISTOS",null,"import en euros"]
["Despeses Activitat A (màxim 80% subvenció)",null,"Previsió inicial o reformulada ja aprovada (1)","Despeses realitzades (2)","Diferència\n",null,"Ingressos previstos",null,"Previsió inicial (1)","Ingressos obtinguts (3)"]
[null,null,null,null,"(2-1)"]
[null,"A.D1  Honoraris d'arquitecte en la fase de projecte i/o direcció",null,{"$f":"'Relació de despeses'!H16","v":0},{"$f":"+C13-D13","v":0},null,"A.","Subvenció municipal (import sol·licitat a la instància/atorgat)",null,{"$f":"'Relació d''ingressos '!F15","v":0}]
[null,"AD.2 Honoraris d'arquitecte en la fase de direcció",null,{"$f":"'Relació de despeses'!H22","v":0},{"$f":"+C14-D14","v":0},null,"B.","Subvencions d'altres administracions",null,{"$f":"'Relació d''ingressos '!F21","v":0}]
[null,"Total Despeses Activitat A  ",{"$f":"SUM(C13:C14)","v":0},{"$f":"SUM(D13:D14)","v":0},{"$f":"SUM(E13:E14)","v":0},null,"C.","Subvencions d'ens privats",null,{"$f":"'Relació d''ingressos '!F27","v":0}]
[null,null,null,null,null,null,"D.","Recursos propis de l'organització aplicats al projecte",null,{"$f":"'Relació d''ingressos '!F33","v":0}]
[null,null,null,null,null,null,"E.","Taquillatge",null,{"$f":"'Relació d''ingressos '!F39","v":0}]
["Despeses Activitat B (màxim 10% subvenció)",null,"Previsió inicial o reformulada ja aprovada (1)","Despeses realitzades (2)","Diferència\n",null,"F.","Quotes d'inscripció",null,{"$f":"'Relació d''ingressos '!F45","v":0}]
[null,null,null,null,"(2-1)",null,"G.","Venda de Productes",null,{"$f":"'Relació d''ingressos '!F51","v":0}]
[null,"B.D1 Honoraris d'arquitecte per definició dels espais comuns per a les activitats col·laboratives sempre i quan no estiguin totalment definits en el Projecte Executiu",null,{"$f":"'Relació de despeses'!H30","v":0},{"$f":"+C20-D20","v":0},null,"H","Publicitat i/o Esponsorització",null,{"$f":"'Relació d''ingressos '!F57","v":0}]
[null,"B.D2 Honoraris de tècnic agrícola o jardiner pel projecte d'hort i / o jardí comunitari. O honoraris de la gestora pel mateix concepte",null,{"$f":"'Relació de despeses'!H36","v":0},{"$f":"+C21-D21","v":0},null,"I.","Altres ingressos",null,{"$f":"'Relació d''ingressos '!F66","v":0}]
[null,"B.D3 Honoraris d'economista per al compte d'explotació de construcció i/o implementació i el d'explotació. O honoraris de la gestora pel mateix concepte",null,{"$f":"'Relació de despeses'!H42","v":0},{"$f":"+C22-D22","v":0},null,null,"Total Ingressos",{"$f":"SUM(I13:I21)","v":0},{"$f":"SUM(J13:J21)","v":0}]
[null,"B.D4 Honoraris d'enginyer d'organització o tècnic especialista en organització i explotació d'espais i instal·lacions comunes, serveis compartits i aplicacions informàtiques per a l'ús dels socis i veïns si s'escau. O honoraris de la gestora pel mateix concepte",null,{"$f":"'Relació de despeses'!H48","v":0},0]
[null,"Total Despeses Activitat B",{"$f":"SUM(C20:C23)","v":0},{"$f":"SUM(D20:D23)","v":0},{"$f":"SUM(E20:E23)","v":0}]
["Despeses Activitat C (màxim 10% subvenció)",null,"Previsió inicial o reformulada ja aprovada (1)","Despeses realitzades (2)","Diferència\n(2-1)",null,"Ingressos menys despeses ",null,{"$f":"+I22-C31","v":0},{"$f":"+J22-D31","v":0}]
[null,"C.D1 Honoraris de persones o entitats relacionades amb la dinamització, mediació i participació de grups, o de la pròpia gestora per aquests conceptes",null,{"$f":"'Relació de despeses'!H56","v":0},0,null,"Desviació de Despeses (4)",null,"Desviació d'ingressos (4)"]
[null,"Total Despeses Activitat C",{"$f":"SUM(C26:C26)","v":0},{"$f":"SUM(D26:D26)","v":0},0,null,"Import"," % ","Import","%"]
["Despeses Auditoria (màxim 1.500,00 €)",null,"Previsió inicial o reformulada ja aprovada (1)","Despeses realitzades (2)","Diferència\n(2-1)",null,{"$f":"D31-C31","v":0},{"$f":"D31/C31","v":{"$error":"#DIV/0!"}},{"$f":"J22-I22","v":0},{"$f":"J22/I22","v":{"$error":"#DIV/0!"}}]
[null,"D.D1 Despeses de l'informe d'auditoria (màxim 1.500€ subvenció)",null,{"$f":"'Relació de despeses'!H63","v":0},{"$f":"+C29-D29","v":0},"% subvencionat inicialment o després de reformulació (5)",null,null,null,{"$f":"I13/I22","v":{"$error":"#DIV/0!"}}]
[null,"Total Despeses Auditoria",{"$f":"SUM(C29:C29)","v":0},{"$f":"SUM(D29:D29)","v":0},0,null,null,"% subvencionat després de justificació (6)",null,{"$f":"+J13/J22","v":{"$error":"#DIV/0!"}}]
[null,"Total Despeses ",{"$f":"C15+C24+C27+C30","v":0},{"$f":"D15+D24+D27+D30","v":0},{"$f":"E15+E24+E27+E30","v":0}]
[]
[]
[]
["Notes:"]
["(*) Les columnes ombrejades en color  s'aniran emplenant automàticament a partir de les dades introduïdes en els documents de despeses -detall i ingressos-detall. Per tant, no imprimiu aquest full fins haver emplenat els altres."]
["(1) Previsió inicial o reformulació ja aprovada= S'han d'indicar la previsió inicial de despeses i d'ingressos segons allò que es va indicar al projecte original en el \"pla de viabilitat econòmica del projecte - pressupost general\" . En cas que ja s'hagi aprovat una reformulació, s'han d'indicar les quantitats reformulades. "]
["(2) Despeses reals = Cost real total del projecte subvencionat. Automàticament s'introduiran els subtotals de les despeses relacionades al full Despeses-detall."]
["(3) Ingresos reals = Total d'ingressos obtinguts per a la realització del projecte subvencionat. Automàticament s'introduiran els subtotals dels ingressos relacionats al full Ingressos-detall"]
["(4) Desviació: En el cas de les despeses, la desviació és la diferència entre despeses reals i la previsió inicial de despeses; i en el cas d'ingressos, la diferència entre els ingressos reals i la previsió inicial d'ingressos. "]
["(5) % finançament municipal inicial o després de reformulació = percentatge que suposen la subvencions municipal (A) respecte del  total d'ingressos del projecte subvencionat."]
["(6) % finançament municipal després de justificació = percentatge que suposa la subvenció municipal (A) respecte del  total d'ingressos del projecte subvencionat. En cas d'existir una desviació sempre s'ha de motivar."]
[]
[]
[]
[]
[]
[]
[]
[]
[]
[]
[]
[]
[]
[]
[]
[]
[]
[]
[]
[]
[]
[]
[]
[]
[]
[]
[]
[null,null,0]